fUST/lending_fUST_20240209
["ID","MTS","AMOUNT","RATE_DAILY","PERIOD"]
[313539298,1707412239784,-500.0,0.00026799,2]
[313539299,1707412239794,-500.0,0.00026799,2]
[313539300,1707412239804,-500.0,0.00026799,2]
[313539301,1707412239814,-500.0,0.00026799,2]
[313539302,1707412239825,-438.34130666,0.00026799,2]
[313539303,1707412239834,-500.0,0.00026799,2]
[313539304,1707412239844,-500.0,0.00026799,2]
[313539305,1707412239854,-500.0,0.00026799,2]
[313539306,1707412239863,-500.0,0.00026799,2]
[313539307,1707412239874,-500.0,0.00026799,2]
[313539308,1707412239883,-500.0,0.00026799,2]
[313539309,1707412239893,-500.0,0.00026799,2]
[313539310,1707412239905,-488.94022688,0.00026799,2]
[313539311,1707412239915,-505.92212348,0.00026799,2]
[313539312,1707412239926,-500.0,0.00026799,2]
[313539313,1707412239936,-500.0,0.00026799,2]
[313539314,1707412239946,-500.0,0.00026799,2]
[313539315,1707412239957,-500.0,0.00026799,2]
[313539316,1707412239967,-500.0,0.00026799,2]
[313539317,1707412239977,-500.0,0.00026799,2]
[313539318,1707412239988,-557.94683048,0.00026799,2]
[313539319,1707412239998,-500.0,0.00026799,2]
[313539320,1707412240007,-500.0,0.00026799,2]
[313539321,1707412240016,-500.0,0.00026799,2]
[313539322,1707412240025,-500.0,0.00026799,2]
[313539323,1707412240034,-634.95295992,0.00026799,2]
[313539324,1707412240043,-500.0,0.00026799,2]
[313539325,1707412240053,-500.0,0.00026799,2]
[313539326,1707412240062,-255.54131748,0.00026799,2]
[313539327,1707412240071,-28413.84650872,0.000268,2]
[313539328,1707412240080,-1382.75585323,0.00027,2]
[313539329,1707412240089,-155.07753877,0.00027,2]
[313539330,1707412240098,-12026.56445011,0.00027,2]
[313539331,1707412240107,-155.0,0.00027397,2]
[313539332,1707412240118,-5304.03,0.00027397,3]
[313539333,1707412240127,-4420.03,0.00027397,3]
[313539334,1707412240136,-3683.36,0.00027397,3]
[313539335,1707412240145,-3069.46,0.00027397,3]
[313539336,1707412240155,-9139.46281144,0.00028,20]
[313539337,1707412240164,-51938.09489488,0.00028,2]
[313539338,1707412240173,-1716.51144437,0.00028,2]
[313539339,1707412240182,-1897.21350752,0.00028,2]
[313539340,1707412240192,-3141.21618564,0.00028,2]
[313539341,1707412240201,-40795.0950745,0.000282,3]
[313539342,1707412240221,-1006.38248155,0.000282,3]
[313539343,1707412240233,-30515.72855111,0.000282,3]
[313539366,1707412242041,-640.48860722,0.00017661,2]
[313539367,1707412242051,-155.05892239,0.00017661,2]
[313539368,1707412242060,-236.35264029,0.000282,3]
[313539369,1707412242071,-38891.64213655,0.000282,3]
[313539370,1707412242080,-4098.40374068,0.000285,2]
[313539371,1707412242110,-5248.39185461,0.000285,2]
[313539372,1707412242119,-155.0,0.00028767,2]
[313539373,1707412242129,-578.0,0.000288,2]
[313539374,1707412242138,-2557.89,0.0002889,3]
[313539375,1707412242148,-198.02392315,0.000289,3]
[313539376,1707412242157,-1126.47077421,0.000289,2]
[313539904,1707412249043,-4505.0,0.000289,2]
[313539912,1707412249107,-18356.9999967,0.000289,2]
[313541096,1707412497349,204.163592,0.0002,10]
[313541113,1707412680418,243.006066,0.0001668,2]
[313541152,1707413010906,24756.993934,0.00016952,2]
[313541153,1707413010954,143.006066,0.00016952,2]
[313541155,1707413135386,243.006066,0.00016843,2]
[313541204,1707413431861,-161.52708074,0.00017806,2]
[313541205,1707413431871,-294.57728151,0.00017807,2]
[313541206,1707413431880,-523.68160801,0.00017807,2]
[313541207,1707413431889,-155.06047358,0.00017808,3]
[313541208,1707413431898,-2045.10360038,0.00017808,2]
[313541209,1707413431907,-609.78077647,0.00017809,2]
[313541210,1707413431917,-640.48860722,0.00017809,2]
[313541211,1707413431927,-500.0,0.00017809,2]
[313541212,1707413431936,-20933.53573456,0.00017809,2]
[313541213,1707413431945,-3331.11583039,0.0001781,2]
[313541214,1707413431954,-322.35466168,0.0001781,2]
[313541215,1707413431964,-1947.3753187,0.00017811,2]
[313541216,1707413431973,-3756.52064681,0.00017811,2]
[313541217,1707413431982,-1018.41805308,0.00017811,2]
[313541218,1707413431991,-167.52109951,0.00017812,2]
[313541219,1707413432001,-2606.4717958,0.00017812,2]
[313541220,1707413432010,-1757.99241626,0.00017812,3]
[313541221,1707413432019,-156.51705845,0.00017999,2]
[313541222,1707413432028,-7841.17590548,0.00017999,2]
[313541223,1707413432037,-5854.11087692,0.00018,2]
[313541224,1707413432047,-200.0,0.00019601,2]
[313541225,1707413432056,-1197.42052821,0.0002,2]
[313541226,1707413432066,-29785.57904035,0.0002,2]
[313541227,1707413432075,-741.55288489,0.0002156,2]
[313541228,1707413432084,-280.0,0.00021561,7]
[313541229,1707413432093,-4739.06901527,0.00025,2]
[313541230,1707413432102,-3840.82619004,0.00025197,2]
[313541231,1707413432111,-335.25025476,0.00025198,2]
[313541232,1707413432121,-280.5209617,0.00026289,2]
[313541233,1707413432130,-180.27136489,0.0002629,2]
[313541234,1707413432139,-1659.06,0.0002638,3]
[313541235,1707413432148,-3163.72,0.0002638,3]
[313541236,1707413432157,-2636.44,0.0002638,3]
[313541237,1707413432167,-2197.03,0.0002638,3]
[313541238,1707413432177,-155.05892239,0.00026387,2]
[313541239,1707413432186,-155.05892239,0.00026388,2]
[313541240,1707413432195,-2325.76489587,0.00026389,2]
[313541241,1707413432204,-4609.98613979,0.0002639,2]
[313541242,1707413432213,-14397.17998351,0.0002639,2]
[313541286,1707413437931,-166.97099952,0.0002639,2]
[313541288,1707413437941,-2495.59757109,0.0002639,2]
[313541290,1707413437952,-1354.58688316,0.0002639,2]
[313541293,1707413437965,-3003.41142006,0.0002639,2]
[313541295,1707413437976,-1773.29752354,0.0002639,2]
[313541297,1707413437985,-1525.58514403,0.0002639,2]
[313541299,1707413437994,-11144.03725227,0.0002639,2]
[313541301,1707413438003,-268.81566104,0.00026401,2]
[313541303,1707413438012,-375.16139543,0.00026401,2]
[313541305,1707413438021,-159.69015325,0.00026401,2]
[313541307,1707413438031,-1382.75585323,0.00027,2]
[313541309,1707413438040,-155.0,0.00027397,2]
[313541311,1707413438049,-325.88089993,0.000275,2]
[313541313,1707413438058,-3480.61290801,0.00027899,2]
[313541315,1707413438067,-4848.58775041,0.000279,2]
[313541317,1707413438079,-1000.0,0.000279,2]
[313541319,1707413438090,-1653.95303052,0.000279,2]
[313541322,1707413438106,-38686.83745739,0.000279,2]
[313541336,1707413438218,-326.8413768,0.00027998,2]
[313541338,1707413438228,-164.69856447,0.00027998,2]
[313541340,1707413438237,-156.37890052,0.00027998,7]
[313541342,1707413438246,-915.16290265,0.00027998,2]
[313541344,1707413438255,-1042.0,0.00027998,2]
[313541346,1707413438264,-476.62855172,0.00027998,2]
[313541348,1707413438273,-294.77906051,0.00027998,2]
[313541350,1707413438282,-309.58093978,0.00027998,2]
[313541352,1707413438291,-310.02790329,0.00027998,2]
[313541354,1707413438300,-155.20128881,0.00027998,2]
[313541356,1707413438309,-500.0,0.00027999,2]
[313541358,1707413438318,-500.0,0.00027999,2]
[313541360,1707413438327,-500.0,0.00027999,2]
[313541362,1707413438336,-500.0,0.00027999,2]
[313541364,1707413438345,-500.0,0.00027999,2]
[313541366,1707413438353,-284.2163145,0.00027999,2]
[313541368,1707413438362,-222.88023594,0.00027999,2]
[313541370,1707413438371,-543.49529599,0.00027999,2]
[313541372,1707413438381,-500.0,0.00027999,2]
[313541374,1707413438390,-500.0,0.00027999,2]
[313541376,1707413438399,-626.4295054,0.00027999,2]
[313541377,1707413438409,-500.0,0.00027999,2]
[313541378,1707413438418,-500.0,0.00027999,2]
[313541379,1707413438427,-500.0,0.00027999,2]
[313541380,1707413438435,-500.0,0.00027999,2]
[313541381,1707413438444,-261.78270397,0.00027999,2]
[313541382,1707413438453,-500.0,0.00027999,2]
[313541383,1707413438462,-500.0,0.00027999,2]
[313541384,1707413438471,-500.0,0.00027999,2]
[313541385,1707413438479,-500.0,0.00027999,2]
[313541386,1707413438488,-458.0,0.00027999,2]
[313541387,1707413438498,-500.0,0.00027999,2]
[313541388,1707413438507,-500.0,0.00027999,2]
[313541389,1707413438516,-500.0,0.00027999,2]
[313541390,1707413438524,-500.0,0.00027999,2]
[313541391,1707413438534,-500.0,0.00027999,2]
[313541393,1707413438542,-500.0,0.00027999,2]
[313541395,1707413438552,-500.0,0.00027999,2]
[313541397,1707413438560,-500.0,0.00027999,2]
[313541399,1707413438569,-500.0,0.00027999,2]
[313541401,1707413438579,-500.0,0.00027999,2]
[313541403,1707413438588,-500.0,0.00027999,2]
[313541405,1707413438597,-500.0,0.00027999,2]
[313541407,1707413438609,-500.0,0.00027999,2]
[313541409,1707413438619,-500.0,0.00027999,2]
[313541411,1707413438629,-266.58066987,0.00027999,2]
[313541413,1707413438638,-500.0,0.00027999,2]
[313541415,1707413438647,-500.0,0.00027999,2]
[313541417,1707413438657,-500.0,0.00027999,2]
[313541419,1707413438666,-500.0,0.00027999,2]
[313541421,1707413438675,-500.0,0.00027999,2]
[313541423,1707413438685,-500.0,0.00027999,2]
[313541426,1707413438695,-500.0,0.00027999,2]
[313541427,1707413438705,-500.0,0.00027999,2]
[313541430,1707413438716,-500.0,0.00027999,2]
[313541432,1707413438725,-500.0,0.00027999,2]
[313541434,1707413438734,-500.0,0.00027999,2]
[313541435,1707413438744,-500.0,0.00027999,2]
[313541437,1707413438753,-500.0,0.00027999,2]
[313541439,1707413438762,-500.0,0.00027999,2]
[313541442,1707413438771,-500.0,0.00027999,2]
[313541444,1707413438781,-500.0,0.00027999,2]
[313541446,1707413438789,-500.0,0.00027999,2]
[313541447,1707413438798,-500.0,0.00027999,2]
[313541449,1707413438807,-500.0,0.00027999,2]
[313541451,1707413438817,-500.0,0.00027999,2]
[313541454,1707413438826,-500.0,0.00027999,2]
[313541455,1707413438835,-500.0,0.00027999,2]
[313541457,1707413438844,-500.0,0.00027999,2]
[313541459,1707413438854,-500.0,0.00027999,2]
[313541462,1707413438863,-252.19017301,0.00027999,2]
[313541464,1707413438873,-500.0,0.00027999,2]
[313541466,1707413438883,-500.0,0.00027999,2]
[313541468,1707413438893,-264.295054,0.00027999,2]
[313541470,1707413438903,-500.0,0.00027999,2]
[313541472,1707413438912,-98927.61185056,0.00028,20]
[313541667,1707413441037,-3700.8001,0.00028,20]
[313541668,1707413441094,-3876.67314061,0.00028,20]
[313541669,1707413441106,-14912.87893822,0.00028,20]
[313548283,1707413662760,175.728864,0.00016821,2]
[313548300,1707414462407,792.48929552,0.00016821,2]
[313548337,1707414632014,-199.77831197,0.00021125,2]
[313548339,1707414632026,-736.43168818,0.00021126,2]
[313548342,1707414632041,-1870.04010762,0.00021126,2]
[313548344,1707414632053,-294.57728151,0.00021126,2]
[313548346,1707414632065,-24900.0,0.00021127,2]
[313548348,1707414632077,-2045.10360038,0.00021425,2]
[313548351,1707414632089,-741.55288489,0.00021425,2]
[313548353,1707414632102,-3756.52064681,0.00021425,2]
[313548355,1707414632114,-181.54986875,0.00021426,2]
[313548358,1707414632126,-500.0,0.00021426,2]
[313548360,1707414632137,-161.52708074,0.00021426,2]
[313548362,1707414632147,-322.35466168,0.00021427,2]
[313548364,1707414632159,-261.08056277,0.00021427,2]
[313548366,1707414632171,-175.728864,0.00021428,2]
[313548369,1707414632183,-162.21176965,0.00021952,2]
[313548371,1707414632196,-155.40765533,0.00022049,2]
[313548373,1707414632207,-1757.99241626,0.00022049,3]
[313548375,1707414632219,-1434.09189254,0.0002205,2]
[313548378,1707414632230,-1297.44316792,0.0002205,2]
[313548380,1707414632243,-621.16559161,0.00022051,2]
[313548382,1707414632254,-609.78077647,0.00022052,2]
[313548384,1707414632264,-171.0131344,0.00022054,2]
[313548386,1707414632274,-167.24603626,0.00022436,2]
[313548389,1707414632289,-2018.03,0.0002252,3]
[313548391,1707414632301,-1681.7,0.0002252,3]
[313548393,1707414632312,-26676.60333048,0.0002253,2]
[313549021,1707414638652,-5854.11087692,0.00021125,2]
[313549023,1707414638661,-10392.09973882,0.0002253,2]
[313549025,1707414638670,-876.5941336,0.00022678,2]
[313549027,1707414638679,-1399.4584176,0.00023,2]
[313549029,1707414638689,-4739.06901527,0.00025,2]
[313549031,1707414638697,-5354.92037871,0.00025017,2]
[313549033,1707414638706,-367.9109137,0.00025018,2]
[313549035,1707414638715,-280.5209617,0.00026,2]
[313549037,1707414638724,-5000.0,0.0002639,2]
[313549039,1707414638733,-8639.3658578,0.0002639,2]
[313549041,1707414638742,-6050.79561581,0.0002639,2]
[313549043,1707414638751,-1269.59775479,0.0002639,2]
[313549045,1707414638763,-3509.64734605,0.0002639,2]
[313549115,1707414641303,-220.75489916,0.0002639,2]
[313549116,1707414641315,-2884.93089862,0.0002639,2]
[313549117,1707414641325,-5000.0,0.0002639,2]
[313549118,1707414641336,-891.04059959,0.0002639,2]
[313549119,1707414641350,-591.92,0.0002639,2]
[313549199,1707414643677,-456.64440001,0.0002639,2]
[313549224,1707414643849,-1320.7538862,0.0002639,2]
[313549225,1707414643858,-662.41485381,0.00026401,2]
[313549227,1707414643868,-160.78345519,0.00026401,2]
[313549229,1707414643877,-170.43599325,0.00026401,2]
[313549231,1707414643885,-501.59971899,0.00026408,5]
[313549233,1707414643894,-729.08984726,0.00027,2]
[313549317,1707414646059,-389.81045533,0.00026389,2]
[313549319,1707414646071,-351.74242956,0.00026389,2]
[313549321,1707414646080,-365.52573424,0.00026389,2]
[313549416,1707414813039,286.4977079,0.000201,4]
[313549417,1707414813068,4713.5022921,0.000201,4]
[313549522,1707415784126,979.23412852,0.00015852,2]
[313549523,1707415793829,167.24603626,0.00017515,2]
[313549526,1707415831236,250.0,0.0001661,2]
[313549527,1707415831273,9289.9650566,0.0001661,2]
[313549544,1707415832297,-1434.09189254,0.00017603,2]
[313549546,1707415832307,-8175.12443521,0.00017603,2]
[313549547,1707415832316,-621.16559161,0.00017603,2]
[313549548,1707415832325,-3756.52064681,0.00017604,2]
[313549549,1707415832334,-2606.4717958,0.00017604,2]
[313549550,1707415832343,-199.77831197,0.00017604,2]
[313549551,1707415832352,-155.40765533,0.00017604,2]
[313549553,1707415832362,-1961.40823934,0.00017605,2]
[313549555,1707415832372,-330.57744299,0.00017605,2]
[313549556,1707415832381,-2822.61727091,0.00017606,2]
[313549557,1707415832390,-214.08706983,0.00017606,2]
[313549558,1707415832399,-19138.64568776,0.00017606,2]
[313549559,1707415832408,-1860.08325202,0.00017606,2]
[313549560,1707415832418,-1670.48223742,0.00017606,2]
[313549561,1707415832427,-3331.11583039,0.00017607,2]
[313549562,1707415832436,-563.21509038,0.00017608,2]
[313549563,1707415832445,-500.0,0.00017608,2]
[313549564,1707415832456,-155.0418613,0.00017609,3]
[313549565,1707415832467,-294.57728151,0.00017611,2]
[313549566,1707415832476,-155.19223926,0.00017613,2]
[313549567,1707415832485,-309.89769592,0.00017613,2]
[313549568,1707415832494,-156.43658402,0.00017613,2]
[313549569,1707415832504,-905.14866283,0.00017613,2]
[313549570,1707415832513,-155.55930946,0.00017613,2]
[313549571,1707415832522,-263.77227934,0.00017613,2]
[313549572,1707415832531,-1687.29456415,0.00017613,2]
[313549573,1707415832540,-556.62730665,0.00017613,2]
[313549574,1707415832580,-15659.44534911,0.00017613,2]
[313549575,1707415832590,-2110.10399171,0.00017613,2]
[313549576,1707415832599,-18947.68100356,0.00017614,2]
[313549577,1707415832608,-439.907339,0.00017631,2]
[313549578,1707415832618,-24900.0,0.00018609,2]
[313549579,1707415832627,-200.0,0.00019376,2]
[313549580,1707415832636,-202.3250463,0.000199,2]
[313549581,1707415832646,-155.07598723,0.0002,2]
[313549582,1707415832655,-2000.0,0.0002,2]
[313549583,1707415832666,-155.0418613,0.0002,2]
[313549584,1707415832676,-680.94052688,0.0002,2]
[313549585,1707415832684,-300.0,0.000201,2]
[313549586,1707415832694,-2091.03843255,0.000201,2]
[313549587,1707415832704,-7062.47353951,0.00020499,2]
[313549588,1707415832712,-16595.0,0.000205,2]
[313549589,1707415832722,-280.0,0.00021314,7]
[313549590,1707415832731,-8204.91221962,0.00021916,2]
[313550149,1707415843439,-294.57728151,0.00017602,2]
[313550151,1707415843450,-4705.42271849,0.00021916,2]
[313557389,1707416661051,767.01207418,0.00016552,2]
[313557422,1707416919672,358.569257,0.00017359,2]
[313557436,1707417032449,-167.24603626,0.00017848,2]
[313557437,1707417032459,-500.0,0.00017947,2]
[313557438,1707417032468,-2606.4717958,0.00017947,2]
[313557439,1707417032477,-155.40765533,0.00017948,2]
[313557440,1707417032486,-1670.48223742,0.00017948,2]
[313557441,1707417032495,-83937.39539652,0.00017948,2]
[313557442,1707417032504,-6801.02037964,0.00017948,2]
[313557443,1707417032513,-19138.64568776,0.00017949,2]
[313557444,1707417032522,-3756.52064681,0.0001795,2]
[313557445,1707417032531,-24309.67706903,0.00018159,2]
[313558920,1707417562248,11833.74315592,0.00017599,2]
[313558921,1707417628733,2172.7753898,0.00016596,2]
[313558922,1707417641545,155.0480649,0.00016596,2]
[313558923,1707417659546,167.35198174,0.00016596,2]
[313558924,1707417689854,167.24603626,0.00017488,2]
[313558925,1707417724294,172.39008437,0.00017499,2]
[313558933,1707417900654,179.284628,0.00016565,2]
[313558934,1707417975317,7983.26892551,0.0001755,2]
[313558935,1707417976732,621.16559161,0.0001755,2]
[313558936,1707417977257,2822.61727091,0.0001755,2]
[313558937,1707417977896,609.78077647,0.0001755,2]
[313558938,1707417977972,155.0480649,0.0001755,2]
[313558939,1707417979062,9794.02318553,0.0001755,2]
[313558940,1707417979092,25000.0,0.0001755,2]
[313558941,1707418007569,25000.0,0.00016565,2]
[313558942,1707418007594,70715.14633582,0.00016565,2]
[313558950,1707418041594,155.0480649,0.00016565,2]
[313558955,1707418060611,5000.0,0.000201,4]
[313558956,1707418065638,164.52032236,0.00016565,2]
[313558957,1707418069156,5000.0,0.000201,4]
[313558958,1707418077171,5000.0,0.000201,4]
[313558959,1707418085444,5000.0,0.000201,4]
[313558961,1707418093421,5000.0,0.000201,4]
[313558963,1707418116157,1164.63916795,0.000201,4]
[313558964,1707418124939,172.39008433,0.00017442,2]
[313558966,1707418134491,597.87492889,0.00015782,2]
[313558986,1707418229167,24900.0,0.00016525,2]
[313559033,1707418232624,-167.19218389,0.00017522,2]
[313559034,1707418232634,-181.54986875,0.00017522,2]
[313559035,1707418232643,-155.0418613,0.00017523,3]
[313559036,1707418232652,-155.0418613,0.00017523,2]
[313559037,1707418232661,-322.35466168,0.00017523,2]
[313559038,1707418232670,-179.22489727,0.00017524,2]
[313559039,1707418232679,-37068.7030693,0.00017524,2]
[313559040,1707418232690,-2467.49018674,0.00017524,2]
[313559042,1707418232699,-1961.40823934,0.00017524,2]
[313559044,1707418232708,-1757.99241626,0.00017525,3]
[313559047,1707418232717,-2045.10360038,0.00017525,2]
[313559049,1707418232727,-3331.11583039,0.00017525,2]
[313559051,1707418232736,-155.0418613,0.00017525,2]
[313559053,1707418232746,-563.21509038,0.00017525,2]
[313559055,1707418232756,-3756.52064681,0.00017525,2]
[313559057,1707418232765,-214.08706983,0.00017526,2]
[313559059,1707418232774,-2606.4717958,0.00017526,2]
[313559061,1707418232784,-1297.44316792,0.00017526,2]
[313559063,1707418232793,-1745.88499104,0.00017527,2]
[313559065,1707418232802,-199.77831197,0.00017527,2]
[313559067,1707418232811,-20933.53573456,0.00017527,2]
[313559069,1707418232820,-167.52109951,0.00017528,2]
[313559071,1707418232829,-1947.3753187,0.00017528,2]
[313559073,1707418232838,-500.0,0.00017528,2]
[313559075,1707418232847,-621.16559161,0.00017529,2]
[313559077,1707418232857,-19922.00560303,0.00017529,2]
[313559079,1707418232870,-609.78077647,0.0001753,2]
[313559081,1707418232881,-83937.39539652,0.00017531,2]
[313559083,1707418232890,-6806.55216034,0.00017543,2]
[313559085,1707418232900,-6806.55216034,0.00017543,2]
[313559087,1707418232909,-310.06046543,0.00017554,2]
[313559089,1707418232919,-791.4333981,0.00017554,2]
[313559091,1707418232929,-2124.74044163,0.00017555,2]
[313559093,1707418232938,-5560.24115366,0.00017575,2]
[313559095,1707418232948,-1673.66814115,0.00017578,2]
[313559097,1707418232957,-20951.37484427,0.00017581,2]
[313559099,1707418232966,-155.11569364,0.00017585,2]
[313559101,1707418232975,-155.2849567,0.00017585,2]
[313559103,1707418232988,-295.6225975,0.00017585,2]
[313559105,1707418232997,-717.73938521,0.00017585,2]
[313559107,1707418233006,-15655.10790832,0.00017593,2]
[313559109,1707418233015,-9875.25661681,0.00018057,2]
[313559111,1707418233025,-185.93740982,0.00018057,2]
[313559112,1707418233034,-18951.59688778,0.00018157,2]
[313559114,1707418233043,-820.60094681,0.00018157,2]
[313559116,1707418233053,-155.33653016,0.00018157,2]
[313559118,1707418233064,-155.28330253,0.00018158,2]
[313559120,1707418233073,-236.91084619,0.000189,2]
[313559122,1707418233083,-168.591889,0.00019178,2]
[313559124,1707418233093,-200.0,0.00019288,2]
[313559126,1707418233102,-176.149664,0.00019886,2]
[313559128,1707418233111,-155.3088614,0.0002,2]
[313559130,1707418233120,-680.94052688,0.0002,2]
[313559132,1707418233129,-2091.03843255,0.000201,2]
[313559134,1707418233138,-300.0,0.000201,2]
[313559136,1707418233147,-3557.52648483,0.000201,2]
[313559138,1707418233156,-500.0,0.00020822,2]
[313559140,1707418233165,-500.0,0.00020822,2]
[313559142,1707418233174,-569.28913365,0.00020822,2]
[313559144,1707418233183,-176.53312111,0.00020822,2]
[313559146,1707418233192,-500.0,0.00020822,2]
[313559148,1707418233201,-500.0,0.00020822,2]
[313559150,1707418233210,-500.0,0.00020822,2]
[313559152,1707418233220,-500.0,0.00020822,2]
[313559154,1707418233230,-500.0,0.00020822,2]
[313559156,1707418233239,-553.85987132,0.00020822,2]
[313559158,1707418233249,-500.0,0.00020822,2]
[313559160,1707418233258,-500.0,0.00020822,2]
[313559162,1707418233269,-500.0,0.00020822,2]
[313559165,1707418233279,-500.0,0.00020822,2]
[313559167,1707418233288,-500.0,0.00020822,2]
[313559169,1707418233297,-500.0,0.00020822,2]
[313559170,1707418233307,-500.0,0.00020822,2]
[313559172,1707418233318,-500.0,0.00020822,2]
[313559175,1707418233329,-500.0,0.00020822,2]
[313559176,1707418233339,-509.36575045,0.00020822,2]
[313559178,1707418233350,-500.0,0.00020822,2]
[313559181,1707418233359,-500.0,0.00020822,2]
[313559183,1707418233369,-500.0,0.00020822,2]
[313559185,1707418233378,-500.0,0.00020822,2]
[313559186,1707418233387,-500.0,0.00020822,2]
[313559188,1707418233396,-500.0,0.00020822,2]
[313559190,1707418233405,-500.0,0.00020822,2]
[313559192,1707418233415,-500.0,0.00020822,2]
[313559195,1707418233424,-500.0,0.00020822,2]
[313559197,1707418233434,-500.0,0.00020822,2]
[313559199,1707418233442,-500.0,0.00020822,2]
[313559200,1707418233451,-500.0,0.00020822,2]
[313559202,1707418233461,-413.48338057,0.00020822,2]
[313559204,1707418233470,-500.0,0.00020822,2]
[313559206,1707418233479,-500.0,0.00020822,2]
[313559209,1707418233489,-500.0,0.00020822,2]
[313559211,1707418233498,-500.0,0.00020822,2]
[313559212,1707418233506,-500.0,0.00020822,2]
[313559215,1707418233517,-500.0,0.00020822,2]
[313559217,1707418233525,-500.0,0.00020822,2]
[313559219,1707418233534,-500.0,0.00020822,2]
[313559220,1707418233543,-500.0,0.00020822,2]
[313559222,1707418233552,-500.0,0.00020822,2]
[313559225,1707418233561,-500.0,0.00020822,2]
[313559227,1707418233571,-500.0,0.00020822,2]
[313559229,1707418233580,-500.0,0.00020822,2]
[313559230,1707418233589,-500.0,0.00020822,2]
[313559232,1707418233598,-500.0,0.00020822,2]
[313559234,1707418233607,-500.0,0.00020822,2]
[313559236,1707418233615,-500.0,0.00020822,2]
[313559238,1707418233625,-500.0,0.00020822,2]
[313559240,1707418233634,-500.0,0.00020822,2]
[313559242,1707418233643,-500.0,0.00020822,2]
[313559244,1707418233653,-500.0,0.00020822,2]
[313559246,1707418233662,-500.0,0.00020822,2]
[313559248,1707418233672,-500.0,0.00020822,2]
[313559250,1707418233681,-500.0,0.00020822,2]
[313559252,1707418233690,-500.0,0.00020822,2]
[313559254,1707418233699,-500.0,0.00020822,2]
[313559256,1707418233709,-500.0,0.00020822,2]
[313559258,1707418233718,-500.0,0.00020822,2]
[313559260,1707418233728,-500.0,0.00020822,2]
[313559263,1707418233737,-500.0,0.00020822,2]
[313559264,1707418233746,-500.0,0.00020822,2]
[313559266,1707418233755,-500.0,0.00020822,2]
[313559268,1707418233765,-500.0,0.00020822,2]
[313559270,1707418233774,-500.0,0.00020822,2]
[313559272,1707418233783,-500.0,0.00020822,2]
[313559274,1707418233792,-182.81586328,0.00020822,2]
[313559276,1707418233802,-500.0,0.00020822,2]
[313559278,1707418233811,-500.0,0.00020822,2]
[313559280,1707418233820,-500.0,0.00020822,2]
[313559282,1707418233829,-500.0,0.00020822,2]
[313559284,1707418233839,-500.0,0.00020822,2]
[313559286,1707418233848,-500.0,0.00020822,2]
[313559288,1707418233857,-500.0,0.00020822,2]
[313559290,1707418233866,-500.0,0.00020822,2]
[313559292,1707418233875,-528.11242365,0.00020822,2]
[313559294,1707418233885,-172.39008433,0.00020928,2]
[313559296,1707418233894,-280.0,0.00021217,7]
[313559298,1707418233903,-2125.7495616,0.00021914,2]
[313559300,1707418233912,-589.07952239,0.00021914,2]
[313559302,1707418233921,-411.0469903,0.00021915,2]
[313559304,1707418233931,-155.05737046,0.00021915,2]
[313559306,1707418233940,-169.42179964,0.00021916,2]
[313559308,1707418233950,-1201.66555398,0.00021916,2]
[313559310,1707418233959,-1831.79022935,0.00021916,2]
[313559312,1707418233968,-172.452642,0.00021918,2]
[313559314,1707418233979,-326.28860186,0.00022,2]
[313559316,1707418233993,-172.452642,0.000232,2]
[313559318,1707418234002,-391.0,0.00023339,7]
[313559320,1707418234011,-648.11620412,0.000239,2]
[313559541,1707418238756,-1434.09189254,0.00017521,2]
[313559543,1707418238765,-1254.88969289,0.000239,2]
[313559555,1707418238865,-266.6525443,0.000239,2]
[313559557,1707418238874,-236.91084619,0.000239,2]
[313559559,1707418238883,-592.84209843,0.00024,2]